bitfinex-derivatives/quotes_BTCF0:USTF0_20250119
["timestamp","ask_amount","ask_price","bid_price","bid_amount"]
[1737297934701,0.10578281,105040.0,105030.0,0.66792814]
[1737297935103,0.10578281,105040.0,105030.0,0.30712814]
[1737297935896,0.46658281,105040.0,105030.0,0.30712814]
[1737297936496,0.52470062,105040.0,105030.0,0.30712814]
[1737297936696,0.16390062,105040.0,105030.0,0.30712814]
[1737297936901,0.52470062,105040.0,105030.0,0.30712814]
[1737297937498,0.46658281,105040.0,105030.0,0.30712814]
[1737297937901,0.10578281,105040.0,105030.0,0.30712814]
[1737297941602,0.16390062,105040.0,105030.0,0.30712814]
[1737297941795,0.16390062,105040.0,105030.0,0.00142814]
[1737297943011,0.16390062,105040.0,105020.0,1.43782043]
[1737297943211,0.05811781,105030.0,105020.0,1.43782043]
[1737297943507,0.05811781,105030.0,105020.0,1.07702043]
[1737297944306,0.05811781,105030.0,105020.0,1.34767203]
[1737297945410,0.05811781,105030.0,105020.0,1.07702043]
[1737297947713,0.10578881,105030.0,105020.0,1.07702043]
[1737297948309,0.10578881,105030.0,105020.0,0.79241629]
[1737297948911,0.10578881,105030.0,105020.0,0.7832]
[1737297949115,0.52470662,105030.0,105020.0,0.7832]
[1737297949707,0.52470662,105030.0,105020.0,0.4003]
[1737297949908,0.89270662,105030.0,105020.0,0.4241]
[1737297950806,0.89270662,105030.0,105020.0,0.0238]
[1737297952112,0.53190662,105030.0,105020.0,0.0238]
[1737297952416,0.89270662,105030.0,105020.0,0.0238]
[1737297954615,0.90196365,105030.0,105020.0,0.0238]
[1737297956417,0.00925703,105030.0,105020.0,0.50083562]
[1737297956618,0.047667,105040.0,105020.0,0.54851162]
[1737297956923,0.047663,105050.0,105030.0,1.55078881]
[1737297957214,1.15753007,105060.0,105040.0,0.05811781]
[1737297957408,0.05811781,105050.0,105030.0,1.55078881]
[1737297958012,0.05811781,105040.0,105030.0,1.492671]
[1737297958215,0.05811781,105050.0,105030.0,2.10680517]
[1737297958719,0.05811781,105050.0,105040.0,0.05811781]
[1737297958913,0.11502694,105060.0,105040.0,0.41891781]
[1737297959114,0.11502694,105060.0,105050.0,0.3608]
[1737297959311,0.11502694,105060.0,105040.0,0.97493417]
[1737297959511,1.65484451,105080.0,105050.0,0.41891781]
[1737297959719,0.24969151,105080.0,105070.0,0.3608]
[1737297960010,0.24969151,105080.0,105060.0,1.49271781]
[1737297960321,0.24969151,105080.0,105070.0,0.3608]
[1737297961018,0.10719299,105080.0,105070.0,0.3608]
[1737297961324,0.1653108,105080.0,105060.0,1.71968414]
[1737297961514,0.05811781,105070.0,105060.0,1.71920414]
[1737297962423,0.05811781,105070.0,105060.0,2.00178732]
[1737297962719,0.46657081,105070.0,105060.0,1.64098732]
[1737297963022,0.10577081,105070.0,105060.0,2.00178732]
[1737297963523,0.10577081,105070.0,105060.0,1.33778732]
[1737297963916,0.10577081,105070.0,105060.0,1.56524887]
[1737297964118,0.52468862,105070.0,105060.0,0.79464887]
[1737297964318,1.20308862,105070.0,105060.0,0.79464887]
[1737297964519,1.60408862,105070.0,105060.0,0.79464887]
[1737297964815,1.18517081,105070.0,105060.0,0.79464887]
[1737297965425,1.54597081,105070.0,105060.0,0.22746155]
[1737297966317,1.18517081,105070.0,105060.0,0.22746155]
[1737297966519,1.60408862,105070.0,105060.0,0.22746155]
[1737297968224,0.047658,105060.0,105050.0,0.22746155]
[1737297968427,0.52469362,105060.0,105050.0,0.22746155]
[1737297969923,0.52469362,105060.0,105040.0,0.65740414]
[1737297969924,0.47703562,105060.0,105040.0,0.60026155]
[1737297970126,0.047659,105060.0,105050.0,0.41891781]
[1737297970426,0.58675628,105070.0,105050.0,1.12671781]
[1737297970618,0.21975628,105070.0,105060.0,0.3608]
[1737297971026,0.58055628,105070.0,105050.0,0.755464]
[1737297971222,0.05811781,105060.0,105050.0,0.98292555]
[1737297971428,0.05811781,105060.0,105050.0,0.93526155]
[1737297971932,0.10577581,105060.0,105050.0,0.93526155]
[1737297972226,0.047658,105060.0,105050.0,1.29606155]
[1737297973722,0.10577581,105060.0,105050.0,1.29606155]
[1737297974229,0.16389362,105060.0,105050.0,1.29606155]
[1737297974423,0.16389362,105060.0,105050.0,0.93526155]
[1737297974728,0.52469362,105060.0,105050.0,0.95905155]
[1737297975128,0.10577581,105060.0,105050.0,0.95905155]
[1737297975726,0.52469362,105060.0,105050.0,0.25125155]
[1737297976021,1.61099362,105060.0,105050.0,0.25125155]
[1737297976527,1.61099362,105060.0,105050.0,0.02379]
[1737297977620,1.62023844,105060.0,105050.0,0.02379]
[1737297979522,0.81870282,105060.0,105050.0,0.02379]
[1737297979717,0.47582063,105060.0,105050.0,0.02379]
[1737297979921,0.53393844,105060.0,105050.0,0.02379]
[1737297982627,0.12548044,105060.0,105050.0,0.02379]
[1737297982829,0.17313844,105060.0,105050.0,0.02379]
[1737297983623,0.53393844,105060.0,105050.0,0.02379]
[1737297984727,0.64792091,105060.0,105050.0,0.02379]
[1737297986631,0.79041943,105060.0,105050.0,0.02379]
[1737297989130,0.79041943,105060.0,105040.0,0.22676414]
[1737297989335,1.23029862,105050.0,105040.0,0.20367155]
[1737297989725,0.86949862,105050.0,105040.0,0.20367155]
[1737297990333,0.10578081,105050.0,105040.0,0.20367155]
[1737297990638,0.047665,105040.0,105030.0,0.46658681]
[1737297990828,0.047665,105040.0,105030.0,0.82738681]
[1737297991636,0.047665,105040.0,105030.0,1.39883242]
[1737297991940,0.047665,105040.0,105030.0,1.35116342]
[1737297992124,0.047665,105040.0,105030.0,1.29304561]
[1737297992328,0.10578281,105040.0,105030.0,1.29304561]
[1737297992729,0.16390062,105040.0,105030.0,1.31684561]
[1737297995638,0.17287598,105040.0,105030.0,1.31684561]
[1737297996841,0.17287598,105040.0,105030.0,1.65834157]
[1737297997732,0.17287598,105040.0,105030.0,1.29754157]
[1737297999342,0.17287598,105040.0,105030.0,0.95604561]
[1737298000639,0.11475817,105040.0,105030.0,0.95604561]
[1737298001745,0.11475817,105040.0,105030.0,1.29754157]
[1737298002630,0.10578281,105040.0,105030.0,1.68974157]
[1737298002830,0.10578281,105040.0,105030.0,2.05054157]
[1737298003030,0.047665,105040.0,105030.0,2.05054157]
[1737298003236,0.10578281,105040.0,105030.0,2.05054157]
[1737298003842,0.16390062,105040.0,105030.0,2.05054157]
[1737298004247,0.16390062,105040.0,105030.0,2.10651887]
[1737298005144,0.16390062,105040.0,105030.0,1.71431887]
[1737298005648,0.53310062,105040.0,105030.0,1.71431887]
[1737298006154,0.53310062,105040.0,105030.0,0.99271887]
[1737298006341,1.21130062,105040.0,105030.0,0.99271887]
[1737298006938,1.35379914,105040.0,105030.0,0.65122291]
[1737298007149,1.46778161,105040.0,105030.0,0.59620863]
[1737298008153,1.32528309,105040.0,105030.0,0.59620863]
[1737298009251,1.32528309,105040.0,105030.0,0.0238]
[1737298011458,1.32528309,105040.0,105030.0,0.19516042]
[1737298012863,1.68608309,105040.0,105030.0,0.56652184]
[1737298013165,1.68608309,105040.0,105030.0,3.3e-07]
[1737298013966,0.04767,105030.0,105020.0,0.34145629]
[1737298014167,0.52470562,105030.0,105020.0,0.34145629]
[1737298014569,0.047674,105020.0,105010.0,0.3608]
[1737298014864,0.16390962,105020.0,105010.0,0.3608]
[1737298016267,0.27813101,105020.0,105010.0,0.3608]
[1737298018474,0.17097288,105020.0,105010.0,0.408479]
[1737298018668,0.12329888,105020.0,105010.0,0.46659681]
[1737298019172,0.18141669,105020.0,105010.0,0.408479]
[1737298020172,0.05811781,105020.0,105010.0,0.408479]
[1737298020668,0.047674,105020.0,105010.0,0.408479]
[1737298021068,0.047674,105020.0,105010.0,0.3608]
[1737298021670,0.047674,105020.0,105010.0,0.41891781]
[1737298022574,0.047674,105020.0,105010.0,0.3608]
[1737298023975,0.047674,105020.0,105010.0,0.42801235]
[1737298024770,0.047674,105020.0,105010.0,0.36989454]
[1737298024973,0.10579181,105020.0,105010.0,0.3608]
[1737298025871,0.047674,105020.0,105010.0,0.41891781]
[1737298026479,0.047674,105020.0,105010.0,0.3608]
[1737298027283,0.10579181,105020.0,105010.0,0.3608]
[1737298027874,0.16390962,105020.0,105000.0,0.10142857]
[1737298028080,0.47703562,105010.0,104980.0,0.7557302]
[1737298028284,0.16392362,104990.0,104980.0,0.3949302]
[1737298028477,0.16392362,104990.0,104980.0,0.7557302]
[1737298029076,0.52472362,104990.0,104980.0,0.3949302]
[1737298029581,0.52472362,104990.0,104970.0,1.37784227]
[1737298029582,0.047698,104970.0,104960.0,0.2129342]
[1737298029778,0.047698,104970.0,104950.0,0.3608]
[1737298030081,0.10581581,104970.0,104960.0,0.3608]
[1737298030278,0.047698,104970.0,104960.0,0.41891781]
[1737298030585,0.047698,104970.0,104960.0,0.3608]
[1737298031285,0.15350781,104980.0,104960.0,0.3608]
[1737298031585,0.10581181,104980.0,104970.0,1.4556]
[1737298032787,0.16392962,104980.0,104970.0,1.4556]
[1737298040283,0.16392962,104980.0,104970.0,1.47941]
[1737298043288,0.05700495,104990.0,104970.0,1.58522481]
[1737298043492,0.047685,105000.0,104980.0,0.52472662]
[1737298043686,0.10580281,105000.0,104990.0,0.3608]
[1737298045092,0.03564703,105010.0,104990.0,0.41891781]
[1737298045093,0.14144584,105010.0,104990.0,0.41891781]
[1737298045393,0.76643468,105020.0,105000.0,1.55290081]
[1737298045582,0.30551687,105020.0,105010.0,0.3608]
[1737298045785,0.31595868,105020.0,105010.0,0.3608]
[1737298045991,0.00142954,105020.0,105010.0,0.41891781]
[1737298046295,0.11386156,105030.0,105010.0,0.46659581]
[1737298046482,0.11386156,105030.0,105020.0,0.47703562]
[1737298046682,0.11386156,105030.0,105020.0,0.52470962]
[1737298047292,0.17197937,105030.0,105020.0,0.3608]
[1737298047499,0.27776718,105030.0,105020.0,0.3608]
[1737298047803,0.16390562,105030.0,105020.0,0.3608]
[1737298048093,0.047674,105020.0,105010.0,0.3608]
[1737298048301,0.16390962,105020.0,105010.0,0.3608]
[1737298050001,0.10579181,105020.0,105010.0,0.3608]
[1737298050203,0.16390962,105020.0,105010.0,0.3608]
[1737298050697,0.047679,105010.0,105000.0,1.1299]
[1737298050897,0.10579681,105010.0,105000.0,1.1299]
[1737298051295,0.00912102,105020.0,105000.0,1.24613562]
[1737298051507,0.3938,105030.0,105010.0,0.41891781]
[1737298051508,0.441471,105030.0,105010.0,0.41891781]
[1737298051692,0.75599614,105040.0,105020.0,0.3608]
[1737298051997,0.36219614,105040.0,105030.0,0.3608]
[1737298052191,0.36219614,105040.0,105020.0,0.3608]
[1737298052394,0.36219614,105040.0,105030.0,0.3608]
[1737298052594,0.42031395,105040.0,105030.0,0.3608]
[1737298052796,0.10578481,105040.0,105030.0,0.3608]
[1737298053006,0.96674037,105050.0,105030.0,0.3608]
[1737298053303,0.91774995,105050.0,105040.0,0.3608]
[1737298054311,0.92012401,105050.0,105040.0,0.3608]
[1737298054492,0.8620062,105050.0,105040.0,0.3608]
[1737298055397,0.43418839,105050.0,105040.0,0.3608]
[1737298055701,0.1149062,105050.0,105040.0,0.3608]
[1737298058904,0.05678839,105050.0,105040.0,0.3608]
[1737298059205,0.00912739,105050.0,105040.0,0.3608]
[1737298059402,0.05811781,105060.0,105040.0,0.6805]
[1737298059707,0.05811781,105060.0,105050.0,0.3608]
[1737298059912,0.10577481,105060.0,105050.0,0.3608]
[1737298060211,0.17340793,105070.0,105050.0,0.41891781]
[1737298060511,0.16294212,105070.0,105060.0,0.7571]
[1737298061199,0.04908056,105070.0,105060.0,0.7571]
[1737298061403,0.10719837,105070.0,105060.0,0.7571]
[1737298061595,0.16531618,105070.0,105060.0,0.7571]
[1737298061998,0.16531618,105070.0,105060.0,0.3963]
[1737298062408,0.17429417,105070.0,105060.0,0.7571]
[1737298062611,0.11617636,105070.0,105060.0,0.7571]
[1737298064309,0.17429417,105070.0,105060.0,0.3963]
[1737298065912,0.11617636,105070.0,105060.0,0.7571]
[1737298068008,0.17429417,105070.0,105060.0,0.7571]
[1737298068311,0.17429417,105070.0,105060.0,0.3608]
[1737298068508,0.047659,105060.0,105050.0,0.3608]
[1737298068714,0.16389462,105060.0,105050.0,0.3608]
[1737298070710,0.93759462,105060.0,105050.0,0.3608]
[1737298072511,0.10577681,105060.0,105050.0,0.3608]
[1737298072913,0.047659,105060.0,105050.0,0.3608]
[1737298073105,0.10577681,105060.0,105050.0,0.3608]
[1737298073910,0.12426811,105070.0,105050.0,0.41891781]
[1737298074108,0.23003992,105070.0,105060.0,0.7668]
[1737298074519,0.17340793,105070.0,105060.0,0.7668]
[1737298074713,0.11386156,105070.0,105060.0,0.7668]
[1737298074908,0.83205814,105080.0,105060.0,0.7668]
[1737298075108,0.83205814,105080.0,105070.0,1.0908]
[1737298075711,0.84111309,105080.0,105070.0,1.0908]
[1737298075911,0.69856332,105080.0,105070.0,1.0908]
[1737298076112,0.75668113,105080.0,105070.0,0.7628]
[1737298076419,0.04766,105060.0,105050.0,0.91630542]
[1737298076713,0.16389562,105060.0,105050.0,1.31830542]
[1737298077218,0.16389562,105060.0,105050.0,1.0908]
[1737298077712,0.16389562,105060.0,105050.0,0.73]
[1737298077911,0.16389562,105060.0,105050.0,1.0908]
[1737298078112,0.10577781,105060.0,105050.0,1.0908]
[1737298078518,0.16389562,105060.0,105050.0,1.0908]
[1737298079020,0.27775718,105060.0,105050.0,1.0908]
[1737298079821,0.21963937,105060.0,105050.0,1.0908]
[1737298080114,0.11386156,105060.0,105050.0,1.14891781]
[1737298080313,0.20066758,105070.0,105050.0,1.19657681]
[1737298080512,0.20066758,105070.0,105060.0,0.3608]
[1737298080906,0.14254977,105070.0,105060.0,0.3608]
[1737298081321,0.14254977,105070.0,105060.0,0.408457]
[1737298081531,0.38078225,105080.0,105060.0,0.408457]
[1737298081709,0.3717273,105080.0,105070.0,0.7375]
[1737298082217,0.29956968,105100.0,105070.0,0.79561781]
[1737298082424,0.35768749,105100.0,105090.0,0.7216]
[1737298082723,0.4634443,105100.0,105090.0,0.7216]
[1737298083023,0.26387462,105100.0,105090.0,0.7216]
[1737298083413,0.20575681,105100.0,105090.0,0.7216]
[1737298083914,0.21487372,105100.0,105090.0,0.7216]
[1737298084416,0.10911691,105100.0,105090.0,0.77971781]
[1737298084616,0.10911691,105100.0,105090.0,0.82736181]
[1737298085120,0.22535253,105100.0,105090.0,0.7216]
[1737298085621,0.22535253,105100.0,105090.0,1.1092]
[1737298086214,0.16723472,105100.0,105090.0,1.1092]
[1737298086414,0.22535253,105100.0,105090.0,1.1092]
[1737298086922,0.27299053,105100.0,105090.0,1.1092]
[1737298087119,0.27299053,105100.0,105090.0,0.7216]
[1737298088022,0.67599053,105100.0,105090.0,0.7216]
[1737298088219,0.21487272,105100.0,105090.0,0.7216]
[1737298088622,0.21487272,105100.0,105090.0,1.4127]
[1737298089031,0.10911691,105100.0,105090.0,1.4127]
[1737298089219,0.16723472,105100.0,105090.0,1.4127]
[1737298090026,0.10911691,105100.0,105090.0,1.4127]
[1737298090930,0.16723472,105100.0,105090.0,1.4127]
[1737298091119,0.10911691,105100.0,105090.0,1.51846081]
[1737298091320,0.10911691,105100.0,105090.0,1.460343]
[1737298091514,0.10574381,105130.0,105100.0,0.047636]
[1737298091726,0.047626,105130.0,105120.0,0.3608]
[1737298091920,0.047626,105130.0,105110.0,0.7342]
[1737298092126,0.04763,105120.0,105110.0,0.3608]
[1737298092522,0.35393,105120.0,105110.0,0.3608]
[1737298092919,0.47016562,105120.0,105110.0,0.3608]
[1737298093128,0.047639,105100.0,105090.0,1.42672723]
[1737298093425,0.16387462,105100.0,105090.0,1.42672723]
[1737298093625,0.10575681,105100.0,105090.0,1.42672723]
[1737298095526,0.047635,105110.0,105090.0,1.42672723]
[1737298095733,0.10575281,105110.0,105100.0,0.3608]
[1737298096330,0.047635,105110.0,105100.0,0.3608]
[1737298096535,0.05811781,105120.0,105100.0,0.3608]
[1737298096832,0.047631,105120.0,105110.0,0.3608]
[1737298097026,0.10574881,105120.0,105110.0,0.3608]
[1737298098127,0.16386662,105120.0,105110.0,0.3608]
[1737298099227,0.05811781,105120.0,105110.0,0.3608]
[1737298099636,0.047627,105130.0,105110.0,0.46655181]
[1737298099822,0.10574481,105130.0,105120.0,1.1227]
[1737298100127,0.05811781,105130.0,105120.0,1.1227]
[1737298101834,0.11627961,105140.0,105120.0,1.49313]
[1737298102035,0.11627961,105140.0,105130.0,0.3608]
[1737298103135,0.10716921,105140.0,105130.0,0.3608]
[1737298103440,0.0014274,105140.0,105130.0,0.46654381]
[1737298104438,0.05954521,105140.0,105130.0,0.408426]
[1737298105836,0.0014274,105140.0,105130.0,0.047626]
[1737298106041,0.0014274,105140.0,105130.0,0.82734381]
[1737298106639,0.05954521,105140.0,105130.0,0.769226]
[1737298106840,0.05954521,105140.0,105130.0,0.7216]
[1737298107042,0.0014274,105140.0,105130.0,0.7216]
[1737298107341,0.0014274,105140.0,105130.0,0.769227]
[1737298108645,0.0014274,105140.0,105130.0,0.82734481]
[1737298109336,0.45947111,105160.0,105140.0,0.047622]
[1737298109642,0.51758892,105160.0,105150.0,0.3608]
[1737298110038,0.05657111,105160.0,105150.0,0.3608]
[1737298110235,0.11468892,105160.0,105150.0,0.3608]
[1737298111142,0.05657111,105160.0,105150.0,1.1495]
[1737298111335,0.11468892,105160.0,105150.0,1.1495]
[1737298113838,0.17280673,105160.0,105150.0,1.1495]
[1737298114039,0.11468892,105160.0,105150.0,1.1495]
[1737298115334,1.23870833,105170.0,105150.0,1.197117]
[1737298115539,0.97232614,105170.0,105160.0,0.408413]
[1737298115937,0.20022614,105170.0,105160.0,0.408413]
[1737298116135,0.24783414,105170.0,105160.0,0.408413]
[1737298116836,0.20022614,105170.0,105160.0,0.408413]
[1737298117232,0.10572581,105170.0,105160.0,0.408413]
[1737298117838,0.11485184,105170.0,105160.0,0.3608]
[1737298120343,0.047615,105160.0,105150.0,1.15006]
[1737298120546,0.16385062,105160.0,105150.0,0.7604]
[1737298120843,0.00912603,105170.0,105160.0,0.047613]
[1737298121151,0.24783014,105180.0,105160.0,0.46653081]
[1737298121351,0.24783014,105180.0,105170.0,0.3608]
[1737298121947,0.10572181,105180.0,105170.0,0.3608]
[1737298122547,0.16383962,105180.0,105170.0,0.3608]
[1737298123142,0.30594795,105180.0,105170.0,0.3608]
[1737298123650,0.30594795,105180.0,105160.0,1.119713]
[1737298123849,0.10572581,105170.0,105160.0,1.119713]
[1737298125851,0.10572581,105170.0,105160.0,0.3608]
[1737298129153,0.14210833,105170.0,105160.0,0.46652781]
[1737298129349,0.14210833,105170.0,105160.0,0.40841]
[1737298129748,0.14210833,105170.0,105160.0,0.46652781]
[1737298130754,0.17969492,105180.0,105160.0,0.46652781]
[1737298130755,0.15140675,105180.0,105160.0,0.46652781]
[1737298130953,0.15140675,105180.0,105170.0,1.078]
[1737298131558,0.14210833,105180.0,105170.0,1.078]
[1737298131743,0.14210833,105180.0,105170.0,1.18372581]
[1737298131947,0.1703965,105190.0,105170.0,1.18372581]
[1737298131948,0.31250483,105190.0,105180.0,0.047604]
[1737298132154,0.31250483,105190.0,105180.0,0.85622181]
[1737298132349,0.37062264,105190.0,105180.0,0.798104]
[1737298133259,0.20571381,105200.0,105180.0,0.798104]
[1737298133260,0.34782214,105200.0,105180.0,0.85622181]
[1737298133557,0.34782214,105200.0,105190.0,0.3608]
[1737298133958,0.76673995,105200.0,105170.0,0.22707587]
[1737298134261,0.16383962,105180.0,105170.0,0.58787587]
[1737298134453,0.16383962,105180.0,105170.0,0.22707587]
[1737298134653,0.90173962,105180.0,105170.0,0.22707587]
[1737298135857,0.047608,105170.0,105160.0,1.1225]
[1737298136157,0.10572581,105170.0,105160.0,1.1225]
[1737298137358,0.18971233,105180.0,105160.0,1.22822781]
[1737298137557,0.24783014,105180.0,105170.0,0.3608]
[1737298137958,0.14210833,105180.0,105170.0,0.408408]
[1737298138859,0.29542914,105190.0,105170.0,0.408408]
[1737298139061,0.18970933,105190.0,105180.0,0.3608]
[1737298139367,0.24782714,105190.0,105180.0,0.3608]
[1737298139563,0.24782714,105190.0,105180.0,0.681]
[1737298140269,0.10571881,105190.0,105180.0,0.681]
[1737298140461,0.35704482,105200.0,105180.0,0.728602]
[1737298140663,0.35704482,105200.0,105190.0,1.1591]
[1737298141268,0.34782214,105200.0,105190.0,1.1591]
[1737298141573,0.46171969,105200.0,105190.0,1.1591]
[1737298142567,0.31961136,105200.0,105190.0,1.1591]
[1737298144165,0.21389755,105200.0,105190.0,1.26481681]
[1737298144366,0.21389755,105200.0,105190.0,1.206699]
[1737298145066,0.1,105200.0,105190.0,1.26481681]
[1737298145262,0.11389755,105210.0,105200.0,0.047594]
[1737298145463,0.17201536,105210.0,105200.0,0.408394]
[1737298145664,0.17201536,105210.0,105200.0,0.3608]
[1737298145866,0.21960536,105210.0,105200.0,0.408394]
[1737298146671,0.10570781,105210.0,105200.0,0.408394]
[1737298146866,0.11532429,105220.0,105210.0,0.04759]
[1737298147078,0.11532429,105220.0,105210.0,0.46650781]
[1737298147266,0.11389755,105220.0,105210.0,0.76660781]
[1737298147463,0.11389755,105220.0,105210.0,0.70849]
[1737298148563,0.17201536,105220.0,105210.0,0.70849]
[1737298148763,0.27771817,105220.0,105210.0,0.70849]
[1737298149164,0.27771817,105220.0,105210.0,0.6609]
[1737298149364,0.16382062,105220.0,105210.0,0.3608]
[1737298149874,0.10570281,105220.0,105210.0,0.3608]
[1737298150170,0.05811781,105220.0,105210.0,0.3608]
[1737298150370,0.10569981,105230.0,105210.0,0.408389]
[1737298150573,0.10569981,105230.0,105220.0,0.3608]
[1737298150763,0.21959736,105230.0,105220.0,0.3608]
[1737298151173,0.10569981,105230.0,105220.0,0.3608]
[1737298153769,0.21929673,105230.0,105210.0,0.3608]
[1737298153973,0.10570281,105220.0,105210.0,0.3608]
[1737298154870,0.047585,105220.0,105210.0,0.3608]
[1737298155078,0.10570281,105220.0,105210.0,0.3608]
[1737298155872,0.16382062,105220.0,105210.0,0.3608]
[1737298156172,0.47242062,105220.0,105210.0,0.3608]
[1737298159270,0.48163251,105220.0,105210.0,0.3608]
[1737298162168,0.047589,105210.0,105200.0,0.3608]
[1737298162373,0.10570681,105210.0,105200.0,0.3608]
[1737298163783,0.90290681,105210.0,105200.0,0.3608]
[1737298164179,0.9030949,105210.0,105200.0,0.3608]
[1737298166786,0.00018809,105210.0,105200.0,0.41891781]
[1737298167084,0.00018809,105210.0,105200.0,0.408394]
[1737298167685,0.00018809,105210.0,105200.0,0.63450863]
[1737298169285,0.00018809,105210.0,105200.0,0.75074425]
[1737298169484,0.00018809,105210.0,105200.0,0.69262644]
[1737298170083,0.00018809,105210.0,105200.0,0.75074425]
[1737298170389,0.00018809,105210.0,105200.0,0.69262644]
[1737298170785,0.00018809,105210.0,105200.0,0.75074425]
[1737298171287,0.00018809,105210.0,105200.0,0.80727291]
[1737298173594,0.11359692,105220.0,105210.0,0.10570781]
[1737298173792,0.11359692,105220.0,105210.0,0.46650781]
[1737298174685,0.31371088,105230.0,105210.0,0.9287306]
[1737298174992,0.25559307,105230.0,105220.0,1.185186]
[1737298175891,0.25559307,105230.0,105220.0,1.4123555]
[1737298177185,0.11359692,105230.0,105220.0,1.4123555]
[1737298178696,0.17171473,105230.0,105220.0,1.4123555]
[1737298179495,0.21929573,105230.0,105220.0,1.4123555]
[1737298179697,0.21929573,105230.0,105220.0,1.3647695]
[1737298180890,0.17171473,105230.0,105220.0,1.3647695]
[1737298181094,0.11359692,105230.0,105220.0,1.47047231]
[1737298182502,0.11359692,105230.0,105220.0,1.4123545]
[1737298183100,0.17171473,105230.0,105220.0,1.4123545]
[1737298183786,0.05811781,105230.0,105220.0,1.4239189]
[1737298185190,0.17171473,105230.0,105220.0,1.4239189]
[1737298185385,0.17171473,105230.0,105220.0,0.5879695]
[1737298185591,1.01389473,105230.0,105220.0,0.5879695]
[1737298186202,1.31649473,105230.0,105220.0,0.5879695]
[1737298186909,1.31649473,105230.0,105220.0,0.6117195]
[1737298188101,1.20289781,105230.0,105220.0,0.38455]
[1737298189398,0.14199615,105240.0,105220.0,0.61297883]
[1737298189599,0.20011396,105240.0,105230.0,0.40838]
[1737298190502,0.31411257,105240.0,105230.0,0.40838]
[1737298191205,0.37223038,105240.0,105230.0,0.3608]
[1737298191504,0.23023423,105240.0,105230.0,0.3608]
[1737298192207,0.17211642,105240.0,105230.0,0.3608]
[1737298192506,0.27781023,105240.0,105230.0,0.3608]
[1737298192702,0.17211642,105240.0,105230.0,0.3608]
[1737298193006,0.17211642,105240.0,105230.0,0.5879695]
[1737298193205,0.23023423,105240.0,105230.0,0.5879695]
[1737298193998,0.17211642,105240.0,105230.0,0.5879695]
[1737298194199,0.23023423,105240.0,105230.0,0.5879695]
[1737298194399,0.17211642,105240.0,105230.0,0.5879695]
[1737298194600,0.23023423,105240.0,105230.0,0.5879695]
[1737298194806,0.17211642,105240.0,105230.0,0.5879695]
[1737298195299,0.23023423,105240.0,105230.0,0.5879695]
[1737298195495,0.17211642,105240.0,105230.0,0.5879695]
[1737298195806,0.27781023,105240.0,105230.0,0.5879695]
[1737298196308,0.27781023,105240.0,105230.0,0.2271695]
[1737298197412,0.27781023,105240.0,105230.0,0.5879695]
[1737298197711,0.41980638,105240.0,105230.0,0.5879695]
[1737298197898,0.36168857,105240.0,105230.0,0.5879695]
[1737298198411,0.41980638,105240.0,105230.0,0.5879695]
[1737298198910,0.27781023,105240.0,105230.0,0.5879695]
[1737298199810,0.30580777,105240.0,105230.0,0.5879695]
[1737298200012,0.30580777,105240.0,105230.0,0.2271695]
[1737298200700,0.30580777,105240.0,105230.0,0.5879695]
[1737298201113,0.47620316,105240.0,105230.0,0.3608]
[1737298202411,0.35996754,105240.0,105230.0,0.3608]
[1737298202713,0.47620316,105240.0,105230.0,0.3608]
[1737298203817,0.47620316,105240.0,105230.0,0.5879695]
[1737298204206,0.35996754,105240.0,105230.0,0.5879695]
[1737298204408,0.37050935,105240.0,105230.0,0.6355485]
[1737298204714,0.41808435,105240.0,105230.0,0.6355485]
[1737298205117,0.47620216,105240.0,105230.0,0.5879695]
[1737298205917,0.41994837,105240.0,105230.0,0.87061279]
[1737298206518,0.36183056,105240.0,105230.0,0.87061279]
[1737298207013,0.24768896,105240.0,105230.0,0.5879695]
[1737298208217,0.20011396,105240.0,105230.0,0.91819179]
[1737298208416,0.20011396,105240.0,105230.0,1.17651279]
[1737298209709,0.17225145,105240.0,105230.0,1.17651279]
[1737298211815,0.3142476,105240.0,105230.0,1.17651279]
[1737298214419,0.3142476,105240.0,105230.0,1.42686556]
[1737298215013,0.41994041,105240.0,105230.0,1.12096556]
[1737298215620,0.3618226,105240.0,105230.0,1.12096556]
[1737298215917,0.41994041,105240.0,105230.0,0.87061279]
[1737298216318,0.3618226,105240.0,105230.0,0.87061279]
[1737298217315,0.78074041,105240.0,105230.0,0.50981279]
[1737298217914,0.41994041,105240.0,105230.0,0.50981279]
[1737298218513,0.47620216,105240.0,105230.0,0.17033064]
[1737298220123,0.047579,105230.0,105220.0,0.75830014]
[1737298220423,0.48379681,105230.0,105220.0,0.75830014]
[1737298220621,0.85679681,105230.0,105220.0,0.75830014]
[1737298220823,0.85679681,105230.0,105220.0,0.39750014]
[1737298221020,1.11355964,105230.0,105220.0,0.39750014]
[1737298221221,1.17167745,105230.0,105220.0,0.39750014]
[1737298221421,1.50187745,105230.0,105220.0,0.39750014]
[1737298222624,1.38776064,105230.0,105220.0,0.17033064]
[1737298223917,0.047584,105220.0,105210.0,0.57871864]
[1737298224127,0.16381962,105220.0,105210.0,0.57871864]
[1737298225025,0.16381962,105220.0,105210.0,0.53113064]
[1737298225325,0.2778353,105220.0,105210.0,0.53113064]
[1737298241832,0.42033379,105220.0,105210.0,0.3608]
[1737298244436,0.42033379,105220.0,105210.0,0.53113064]
[1737298245740,0.42033379,105220.0,105210.0,0.17033064]
[1737298245933,0.4767135,105220.0,105200.0,1.53640014]
[1737298246134,0.10570581,105210.0,105200.0,1.53640014]
[1737298247143,0.21980094,105210.0,105200.0,1.53640014]
[1737298247338,0.21980094,105210.0,105200.0,1.58399314]
[1737298247536,0.21980094,105210.0,105200.0,1.53640014]
[1737298248244,0.21980094,105210.0,105200.0,1.3660695]
[1737298249239,0.21980094,105210.0,105200.0,1.64871279]
[1737298250345,0.10570581,105210.0,105200.0,1.1389]
[1737298252549,0.16382362,105210.0,105200.0,1.1389]
[1737298252755,0.16382362,105210.0,105200.0,0.3608]
[1737298252959,0.94602362,105210.0,105200.0,0.3608]
[1737298253251,1.26132362,105210.0,105190.0,0.28264329]
[1737298253458,0.52462862,105200.0,105190.0,0.28264329]
[1737298254659,0.16382862,105200.0,105190.0,0.28264329]
[1737298254846,0.16382862,105200.0,105190.0,0.64344329]
[1737298255046,0.16382862,105200.0,105190.0,0.53157644]
[1737298255047,0.4767225,105200.0,105190.0,0.53157644]
[1737298255257,0.4767225,105200.0,105190.0,0.56807644]
[1737298255451,0.4767225,105200.0,105190.0,0.92887644]
[1737298256260,0.42037006,105200.0,105190.0,0.56807644]
[1737298256661,0.42037006,105200.0,105190.0,0.92887644]
[1737298256856,0.42037006,105200.0,105190.0,0.56807644]